Cogmind - Beta 17 @@@ ROGUE MODE // 2026.06.24 @ 21:58:42 Player: Scottariah Result: Destroyed by 3L-TEE(R) with Subdweller Machine Gun Performance ------------- Evolutions (0) 0 Regions Visited (2) 400 Robots Destroyed (30) 150 Value Destroyed (751) 751 Prototype IDs (15) 300 Alien Tech Used (0) 0 Bonus (7500) 7500 TOTAL SCORE: 9101 Bonus ------- Prayed to X0-1V1 5000 Major X0-1V1 Interference 2500 Cogmind --------- Core Integrity 0/175 Matter 266/300 Energy 208/250 System Corruption 1% Temperature Cool (0) Movement Treading (340) Ox2 Location -10/Subcaves Parts ------- > --- POWER (1) -------- Ion Engine > --- PROPULSION (2) --- Light Treads Spiked Treads > --- UTILITY (2) ------ Huge Storage Unit X0-1V1's Piety Tracker > --- WEAPON (2) ------- Light Assault Rifle Light Assault Rifle > --- INVENTORY (25) --- Ion Engine Ion Engine Light Treads Light Treads Light Treads Aluminum Leg Aluminum Leg Aluminum Leg Cargo Legs Subdweller Monowheel Heat Sink High-capacity Matter Pod (200) Signal Interpreter Seismic Detector Self-contained Transmogrifier Subdweller Laser Makeshift Laser Light Assault Rifle Light Assault Rifle Light Assault Rifle Grenade Launcher Datajack Mining Laser Peak State ------------ > --- POWER ------------ Ion Engine > --- PROPULSION ------- Light Treads Spiked Treads > --- UTILITY ---------- Huge Storage Unit X0-1V1's Piety Tracker > --- WEAPON ----------- Light Assault Rifle Light Assault Rifle > --- INVENTORY -------- Ion Engine Ion Engine Ion Engine Light Treads Light Treads Aluminum Leg Aluminum Leg Aluminum Leg Cargo Legs Wheel Subdweller Monowheel Heat Sink High-capacity Matter Pod Signal Interpreter Seismic Detector Self-contained Transmogrifier Subdweller Laser Makeshift Laser Light Assault Rifle Light Assault Rifle Light Assault Rifle Grenade Launcher Datajack Mining Laser [Rating: 25] Favorites ----------- Power Ion Engine Engine Ion Engine Propulsion Light Treads Treads Light Treads Utility Huge Storage Unit Device Heat Sink Storage Huge Storage Unit Weapon Light Assault Rifle Ballistic Gun Light Assault Rifle Special Weapon Mining Laser Build | -11 -10 -10 ------- Run | Yrd Mat Sub Slots Evolved . | . . . Power . | . . . Propulsion . | . . . Utility . | . . . Weapon . | . . . Parts Attached 21 | 7 11 3 Power 3 | 1 1 1 Engine 3 | 1 1 1 Core . | . . . Reactor . | . . . Propulsion 5 | 2 1 2 Treads 5 | 2 1 2 Leg . | . . . Wheel . | . . . Hover . | . . . Flight . | . . . Utility 7 | 2 5 . Device 4 | 1 3 . Storage 3 | 1 2 . Processor . | . . . Hackware . | . . . Protection . | . . . Artifact . | . . . Weapon 6 | 2 4 . Energy Gun . | . . . Energy Cannon . | . . . Ballistic Gun 5 | 2 3 . Ballistic Cannon . | . . . Launcher . | . . . Special Weapon 1 | . 1 . Impact Weapon . | . . . Slashing Weapon . | . . . Piercing Weapon . | . . . Special Melee Weapon . | . . . Unidentified Prototypes 1 | . 1 . Parts Lost 2 | . 1 1 Power 1 | . . 1 Propulsion . | . . . Utility . | . . . Weapon 1 | . 1 . Highest Loss Streak 1 | . 1 1 To Critical Strikes . | . . . Average Backups 19 | 3 17 24 Power 2 | . 2 2 Propulsion 6 | 1 5 7 Utility 4 | . 4 4 Weapon 5 | 1 4 6 Tool/Special . | . . . Unused Backups 33 | . 9 24 Power 3 | . 1 2 Propulsion 12 | . 4 8 Utility 5 | . 1 4 Weapon 11 | . 3 8 Tool/Special 2 | . . 2 Average Slot Usage (%) 99 | . 99 100 Engine 14 | . 14 14 Treads 27 | . 27 28 Device 13 | . 13 14 Storage 14 | . 14 14 Ballistic Gun 26 | . 27 25 Special Weapon 1 | . . 2 Peak Build Rating 25 | 7 21 25 Average Rating 13 | 5 8 23 On Entrance 9 | . 7 21 Avg Prop Armor Cover (%) . | . . . Naked Turns . | . . . Heaviest Build 89 | 14 89 88 Greatest Support 40 | 40 40 40 Greatest Overweight (x) 3 | 3 2 2 Average Overweight (x) 1 | . 1 2 Largest Inventory Capacity 25 | 8 25 25 Average Capacity 22 | 7 21 25 Most Carried 25 | 6 25 25 Average Carried 19 | 3 17 24 Final Capacity 25 | 8 25 25 Final Carried 25 | 6 25 24 Class Distribution -------------------- 100% | Mutant Dominant Class ---------------- Mutant | -10/Materials Mutant | -10/Subcaves Resources | -11 -10 -10 ----------- Run | Yrd Mat Sub Matter Collected 979 | 306 584 89 Remotely . | . . . Salvage Created 1176 | 138 882 156 Parts 73 | 11 52 10 Haulers Intercepted 2 | . 2 . Recyclers Shooed 1 | . 1 . Parts Field Recycled . | . . . Retrieved Matter . | . . . Parts Self-Destructed 3 | . . 3 Prevented . | . . . Parts Restored . | . . . Kills | -11 -10 -10 ------- Run | Yrd Mat Sub Combat Hostiles Destroyed 24 | . 21 3 Guns 24 | . 21 3 Classes Destroyed 7 | 2 3 2 Tunneler 2 | 2 . . Hauler 2 | . 2 . Recycler 2 | 1 1 . Swarmer 6 | . 6 . Grunt 15 | . 15 . Sentry 1 | . . 1 Subdweller 2 | . . 2 Best Kill Streak 3 | 2 3 1 Combat Bots Only 3 | . 3 1 Max Kills in Single Turn 2 | 1 2 1 Gunslinging 1 | . 1 . Exploded . | . . . Melee . | . . . Uniques/NPCs Destroyed . | . . . Combat | -11 -10 -10 -------- Run | Yrd Mat Sub Hostile Shots Fired 118 | . 78 40 Missed 32 | . 21 11 Hits 86 | . 57 29 Projectile 86 | . 57 29 Critical Strikes 3 | . 1 2 Damage Taken 1209 | . 640 569 Core 258 | . 105 153 Absorbed by Shields . | . . . Regen/Repaired (Parts) 185 | . 185 . Core Remaining (%) 100 | 100 . . Volleys Fired 110 | 9 72 29 Largest 2 | 2 2 2 Hottest 100 | 40 100 100 Shots Fired 215 | 18 141 56 Gun 208 | 18 138 52 Cannon . | . . . Launcher . | . . . Special 7 | . 3 4 Kinetic 208 | 18 138 52 Thermal 7 | . 3 4 Explosive . | . . . Electromagnetic . | . . . Robot Hit Streak 18 | 6 18 11 Robot Miss Streak 4 | 4 2 2 Penetration Max . | . . . Secondary Targets 3 | . 3 . Max Gunslinging Chain 1 | . 1 . Shots Hit Robots 153 | 9 103 41 Core Hits 65 | 4 48 13 Critical Kills 1 | 1 . . Critical Parts Destroyed . | . . . Critical Strikes 3 | 1 . 2 Destroy 3 | 1 . 2 Melee Attacks . | . . . Impact . | . . . Slashing . | . . . Piercing . | . . . Sneak Attacks . | . . . Combat Hostiles . | . . . Follow-up Attacks . | . . . Damage Inflicted 1354 | 89 949 316 Guns 1354 | 89 949 316 Cannons . | . . . Explosions . | . . . Melee . | . . . Ramming . | . . . Kinetic 1354 | 89 949 316 Thermal . | . . . Explosive . | . . . Electromagnetic . | . . . Impact . | . . . Slashing . | . . . Piercing . | . . . Highest Corruption 1 | . 1 1 Average Corruption 1 | . 1 1 Corruption Purged . | . . . Corruption Blocked . | . . . Effects 13 | . 6 7 Message Errors 1 | . . 1 Matter Fused 1 | . . 1 Heat Flow Errors 3 | . 3 . Energy Discharges 2 | . . 2 Parts Rejected 1 | . . 1 Data Loss (minor) 2 | . 2 . Data Loss (major) 1 | . 1 . Misfires 1 | . . 1 Alerts 1 | . . 1 Overload Shots . | . . . Overflow Damage . | . . . Projectiles . | . . . Explosions . | . . . Melee . | . . . Knockbacks . | . . . Impact . | . . . Kinetic . | . . . Secondary . | . . . Self-Inflicted Damage . | . . . Shots . | . . . Rammed 1 | . 1 . Targets Rammed 1 | . 1 . Kicked . | . . . Crushed . | . . . Highest Temperature 241 | . 241 . Average Temperature 68 | . 68 . Received Heat Transfer 378 | . 306 72 Siege Activations . | . . . Martial Activations . | . . . Shielding Activations . | . . . Robots Disrupted . | . . . Combat Hostiles . | . . . Robots Corrupted . | . . . Combat Hostiles . | . . . Parts Fried . | . . . Impact Corruptions . | . . . Robots Melted . | . . . Combat Hostiles . | . . . Parts Melted . | . . . Heat Transferred . | . . . Parts Sabotaged . | . . . Parts Stolen . | . . . Parts Stripped . | . . . Power Chain Reactions . | . . . Alert | -11 -10 -10 ------- Run | Yrd Mat Sub Maximum Alert Level . | . . . Low Security (%) 100 | 100 100 . Level 1 . | . . . Level 2 . | . . . Level 3 . | . . . Level 4 . | . . . Level 5 . | . . . High Security . | . . . Max Security . | . . . Peak Influence 160 | 5 160 . Initial . | . . . Average 50 | 1 53 . Influence Increases 634 | 15 599 20 Destroy 0b10 Robot/C 440 | . 420 20 Destroy 0b10 Robot/NC 30 | 15 15 . Destroy Leader 84 | . 84 . Successful Hack 27 | . 27 . Destroy Structure 8 | . 8 . Lose Combat Pursuer 45 | . 45 . Influence Decreases 634 | 15 522 97 Entered New Map 37 | . . 37 Time Decay 587 | 15 512 60 Lost Part 10 | . 10 . Squads Dispatched 4 | . 4 . Investigation 2 | . 2 . Extermination . | . . . Reinforcement 2 | . 2 . Assault . | . . . Garrison . | . . . Intercept . | . . . Searches Triggered . | . . . Construction Impeded . | . . . Haulers Reinforced . | . . . Active Scanning Responses . | . . . Cargo Convoy Interrupts . | . . . Stealth | -11 -10 -10 --------- Run | Yrd Mat Sub Distress Signals 2 | . 2 . Communications Jammed . | . . . Distress Signals . | . . . Times Spotted 42 | . 38 4 Peak Tracking Total 5 | . 5 2 Tactical Retreats 2 | . 2 . Traps | -11 -10 -10 ------- Run | Yrd Mat Sub Traps Triggered 3 | . 3 . Indirectly . | . . . Trap Hack Attempts . | . . . Triggered . | . . . Disarmed . | . . . Reprogrammed . | . . . Reused . | . . . Traps Extracted . | . . . Installed . | . . . Triggered . | . . . Machines | -11 -10 -10 ---------- Run | Yrd Mat Sub Machines Disabled 1 | . . 1 Max in Single Turn 1 | . . 1 Machines Repaired . | . . . Machines Dismantled . | . . . Machines Sabotaged . | . . . Overloaded Fab Kills . | . . . Hacking | -11 -10 -10 --------- Run | Yrd Mat Sub Machines Accessed 7 | . 6 1 Terminals 5 | . 5 . Fabricators . | . . . Repair Stations 1 | . 1 . Recycling Units . | . . . Scanalyzers . | . . . Garrison Access . | . . . Total Hacks 42 | . 33 9 Successful 29 | . 20 9 Failed 12 | . 12 . Catastrophic 1 | . 1 . Database Lockouts 1 | . 1 . Manual 23 | . 23 . Terminals 26 | . 26 . Fabricators . | . . . Repair Stations 7 | . 7 . Recycling Units . | . . . Scanalyzers . | . . . Garrison Access . | . . . Terminal Hacks 14 | . 5 9 Record 8 | . . 8 Robot Analysis 4 | . 4 . Terminal Index 1 | . 1 . Proto ID Catalog 1 | . . 1 Fabricator Hacks . | . . . Repair Station Hacks 6 | . 6 . Scan Component 3 | . 3 . Repair 3 | . 3 . Recycling Unit Hacks . | . . . Scanalyzer . | . . . Garrison Access Hacks . | . . . Unauthorized Hacks 9 | . 9 . Terminals 9 | . 9 . Botnet 4 | . 4 . Skim 5 | . 5 . Fabricators . | . . . Repair Stations . | . . . Recycling Units . | . . . Scanalyzers . | . . . Garrison Access . | . . . Data Cores Recovered . | . . . Used . | . . . Hacking Detections 6 | . 6 . Full Trace Events . | . . . Feedback Events . | . . . Feedback Blocked . | . . . Robot Schematics Acquired . | . . . Robots Built . | . . . Authchips . | . . . Time . | . . . Total Robot Build Rating . | . . . Part Schematics Acquired . | . . . Parts Built . | . . . Authchips . | . . . Time . | . . . Total Part Build Rating . | . . . Part Studies Acquired . | . . . Parts Repaired 3 | . 3 . Time 78 | . 78 . Parts Recycled . | . . . Recycled Matter . | . . . Retrieved Matter . | . . . Retrieved Components . | . . . Parts Scanalyzed . | . . . Part Schematics Acquired . | . . . Parts Damaged . | . . . Bothacking | -11 -10 -10 ------------ Run | Yrd Mat Sub Used RIF Installer . | . . . Robots Hacked . | . . . Non-combat . | . . . Combat . | . . . Robot Hacks Applied . | . . . Relay Couplers Released . | . . . Fabnet Peak Effective % . | . . . Robots Rewired . | . . . Allies Hacked . | . . . Hacks Repelled . | . . . Allies | -11 -10 -10 -------- Run | Yrd Mat Sub Total Allies . | . . . Largest Group . | . . . Highest-Rated Group . | . . . Highest-Rated Ally . | . . . Total Orders . | . . . Ally Attacks . | . . . Total Damage . | . . . Kills . | . . . Allies Corrupted . | . . . Allies Melted . | . . . X0-1V1 Amusement Gains 19 | . 19 . Good Acts 1 | . . 1 Bad Acts 2 | . . 2 Intel | -11 -10 -10 ------- Run | Yrd Mat Sub Active Infowar (turns) 408 | 32 376 . Seismic 408 | 32 376 . Robot Analysis Total 4 | . 4 . Derelict Logs Recovered . | . . . Drone Launches . | . . . Drone Recoveries . | . . . Exploration | -11 -10 -10 ------------- Run | Yrd Mat Sub Turns Passed 3526 | 122 2155 1249 Spaces Moved 1099 | 53 697 349 Core 11 | 11 . . Treads 1088 | 42 697 349 Legs . | . . . Wheels . | . . . Hover . | . . . Flight . | . . . Fastest Speed 50 | 50 160 320 Average Speed 275 | 153 257 329 Slowest Speed 340 | 200 320 340 Overloaded Moves . | . . . Propulsion Burnouts . | . . . Robots Hopped . | . . . Potential Cave-ins . | . . . Cave-ins Triggered . | . . . Exploration Rate (%) 43 | 4 96 31 Regions Visited 2 Branch Regions 1 Pre-discovered Areas . | . . . Known Exits Taken 1 | . 1 . Unknown Exits Taken 1 | 1 . . Scrap Searched . | . . . Spaces Dug 3 | . 3 . Terrain Destroyed 3 | . 3 . Melee . | . . . Projectile 3 | . 3 . AOE . | . . . Terrain Rammed . | . . . Walls Destroyed . | . . . Machines Disabled . | . . . Actions | -11 -10 -10 --------- Run | Yrd Mat Sub Total 1408 | 74 935 399 Wait 103 | . 102 1 Move 1097 | 52 696 349 Hop . | . . . Pick Up 42 | 6 30 6 Fast Attach 12 | 7 4 1 Attach 2 | . 1 1 Detach 1 | . 1 . Swap 17 | . 13 4 Drop 23 | . 15 8 Fire 110 | 9 72 29 Melee . | . . . Ram . | . . . Kick . | . . . Crush 1 | . 1 . Escape Stasis . | . . . Rewire . | . . . Trap . | . . . Miscellaneous . | . . . Route ------- -11/Scrapyard -10/Materials (discovered 6 exits: *Mat x3 / *Min x2 / *Sub) -10/Subcaves (discovered 1 exit: Mat) History --------- Turn | Location | Event 13 | -11/Scrapyard | Discovered new exit (range 15) 123 | -11/Scrapyard | Entered Materials 300 | -10/Materials | Build established: Mutant 389 | -10/Materials | Discovered new exit (range 11) 397 | -10/Materials | Central database locked down 515 | -10/Materials | Discovered new exit (range 12) 1235 | -10/Materials | Loaded intel: 1 repair station location 1299 | -10/Materials | Discovered new exit (range 16) 1335 | -10/Materials | Identified exit to Subcaves 1371 | -10/Materials | Identified exit to Mines 1399 | -10/Materials | Identified exit to Materials 1816 | -10/Materials | Repaired Lgt. Treads 1844 | -10/Materials | Repaired Lgt. Treads 1871 | -10/Materials | Repaired Ion Engine 2260 | -10/Materials | Prayed at D.C.S.S. Altar Unit 2278 | -10/Materials | Entered Subcaves 2279 | -10/Subcaves | Identified exit to Materials 2457 | -10/Subcaves | Visited 4L-MR0's lab 2493 | -10/Subcaves | Found Cargo Legs 2501 | -10/Subcaves | Found Prototype Device 2674 | -10/Subcaves | Core integrity fell below 50% 2838 | -10/Subcaves | Shifting Twisted Machinery released Mak. Laser 2856 | -10/Subcaves | Shifting Twisted Machinery released Spk. Treads 3374 | -10/Subcaves | Heat dissipation permanently improved by X0-1V1 (+15) 3493 | -10/Subcaves | X0-1V1 tapped a No Entrance sign 3520 | -10/Subcaves | Core integrity fell below 20% 3527 | -10/Subcaves | Destroyed by 3L-TEE(R) with Subdweller Machine Gun Last Messages --------------- 02899_ Acquired Lgt. Treads. 03034_ System corrupted: Lgt. Treads rejected. 03035_ Acquired Lgt. Treads. 03042_ Y-45 Defender destroyed. 03048_ Subatomizers dissect the Imp. Ion Engine. 03051_ Imp. Ion Engine fries itself beyond repair. 03056_ Lgt. Armor Plating fries itself beyond repair. 03058_ Hvy. Assault Rifle fries itself beyond repair. 03065_ Acquired 57 matter. 03191_ 77-M01(u) deconstructs Twisted Machinery. 03201_ X0-1V1: "I had everything to do with that." 03374_ X0-1V1: "Any self-respecting god will have their pound of flesh." (permanent +15 heat dissipation) 03493_ X0-1V1 taps a No Entrance sign. 03513_ Ion Engine destroyed. 03519_ 22-J4Y(R) suffers critical hit (Destroy). 03519_ 22-J4Y(R) destroyed. 03522_ Subatomizers dissect the Sub. Power Source. 03526_ 3L-TEE(R) affixes Scrap Shield Fragment to Scrap Shield. 03527_ X0-1V1 guffaws! Map ----- +----------------------------------------------------+ | ?????????????????????????????????????????????????? | | ?????????????????????????????????????????????????? | | ?????????????????????????????????????????????????? | | ?????????????????????????????????????????????????? | | ?????????????????????????????????????????????????? | | ?????????????????????????????????????????????????? | | ??????????????????????????? ????????????????????? | | ??????????????????????????# ????????????????????? | | ?????????????????????? ## ???????????##???????? | | ?????????????????????? ?????????## #??? #### | | ??????????????????????# ??????## ?? | | ???????????????????? ## #?????## ??? | | ????????????????????? #????## ??? | | ?????????????????????? ####?# #??? | | ??????????????????????? ##?# #??? | | ????????????????????????# ##?# #??? | | ????????????????????????# #### #####? | | ??????????????????????### ## # ### | | ????????????????????### | | ????????????????????# ## | | ?????????????????????????# ## ## ## | | ??????????????????????#### ####### # | | ??????????????????????# # # #?????# | | ???????????????????????# ## #?##?## | | ??????????????????????## ## ## ##?# ## | | ??????????????????????# @ #########??# # | | ????????????????????# #[ ###??????????## ##### | | ???????????????????# &%*#?????????????## #???? | | ???????????????????## R #?????????????# #???# | | ????????????????????# #???????????### #??## | | ????????????????????## ## ???????????# #### | | ????????????????????? ?## ?????????## ## | | ???????????????????? ???# ????????# | | ???????????????????# ????? ???????## | | ???????????????????## ????? #???????### ## | | ???????????????????? ????? #?????????## ###? | | ???????????????????? ??????#####??????????## ##??? | | ???????????????????" ??????????????????????###???? | | ???????????????????"?????????????????????????????? | | ?????????????????????????????????????????????????? | | ?????????????????????????????????????????????????? | | ?????????????????????????????????????????????????? | | ?????????????????????????????????????????????????? | | ?????????????????????????????????????????????????? | | ?????????????????????????????????????????????????? | | ?????????????????????????????????????????????????? | | ?????????????????????????????????????????????????? | | ?????????????????????????????????????????????????? | | ?????????????????????????????????????????????????? | | ?????????????????????????????????????????????????? | +----------------------------------------------------+ Best States ------------- Heat Dissipation 40 Energy Generation 10 Energy Capacity 250 Matter Stores 300 Matter Capacity 300 Sight Range 16 Terrain Scan Density 10 Evasion (%) 40 Recoil Reduction 2 Item Schematics ----------------- None Robot Schematics ------------------ None Fabricated ------------ Nothing Repaired ---------- Lgt. Treads | 43% | -10/Materials Lgt. Treads | 55% | -10/Materials Ion Engine | 28% | -10/Materials Studied --------- None Alien Tech Used ----------------- None Achievements -------------- None Challenges ------------ None Game ------ Seed SalvageAerolevMaul Manual? 0 Play Time 00:24:42 Cumulative 115.4 hours Start 2026.06.24 @ 11:12:32 End 2026.06.24 @ 21:58:42 Sessions 2 Manual Loads 0 Difficulty Rogue Special Mode None Game No. 143 Rogue 143 Adventurer 0 Explorer 0 Win Type - Total 0 Types 0/0/0/0/0/0/0/0/0/0 Lore% 53 Gallery% 46 Achievement% 36 Wizard Run 0 Options --------- Layout 0 ASCII 0 Keyboard 0 Movement Mouse Keybinds 1 Fullscreen 2 Font 24/X11 Map View 38x25 Zoom Use 64% Tactical HUD 1 Map Filters NONE Filters NONE Steam 1 RUN: 481d0896-adf4-4585-851c-30754054464b